fUSD/lending_fUSD_20240227
["ID","MTS","AMOUNT","RATE_DAILY","PERIOD"]
[315462245,1709050260978,-8767.77,0.000239,2]
[315462246,1709050260988,-193.63,0.000239,2]
[315462247,1709050260997,-193.63,0.000239,2]
[315462248,1709050261007,-8767.77,0.000239,2]
[315462249,1709050261016,-193.63,0.000239,2]
[315462250,1709050261025,-8767.77,0.000239,2]
[315462251,1709050261035,-193.63,0.000239,2]
[315462252,1709050261044,-8767.77,0.000239,2]
[315462253,1709050261053,-193.63,0.000239,2]
[315462254,1709050261063,-8767.77,0.000239,2]
[315462255,1709050261072,-193.63,0.000239,2]
[315462256,1709050261081,-8767.77,0.000239,2]
[315462257,1709050261090,-193.63,0.000239,2]
[315462258,1709050261099,-8767.77,0.000239,2]
[315462259,1709050261108,-8767.77,0.000239,2]
[315462260,1709050261117,-193.63,0.000239,2]
[315462261,1709050261126,-8767.77,0.000239,2]
[315462262,1709050261135,-193.63,0.000239,2]
[315462263,1709050261144,-8767.77,0.000239,2]
[315462264,1709050261153,-193.63,0.000239,2]
[315462265,1709050261163,-8767.77,0.000239,2]
[315462266,1709050261179,-8767.77,0.000239,2]
[315462267,1709050261188,-8767.77,0.000239,2]
[315462268,1709050261198,-8767.77,0.000239,2]
[315462269,1709050261208,-8767.77,0.000239,2]
[315462270,1709050261220,-8767.77,0.000239,2]
[315462271,1709050261230,-8767.77,0.000239,2]
[315462272,1709050261239,-8767.77,0.000239,2]
[315462273,1709050261248,-8767.77,0.000239,2]
[315462274,1709050261259,-726.93983863,0.000239,2]
[315462275,1709050261269,-2336.50838136,0.000239,8]
[315462276,1709050261279,-151.30090912,0.00023962,2]
[315462277,1709050261290,-5567.2998207,0.00023984,2]
[315462278,1709050261299,-4560.7291566,0.00023984,2]
[315462279,1709050261311,-3554.1584926,0.00023984,2]
[315462280,1709050261321,-2547.5878286,0.00023984,2]
[315462281,1709050261330,-1541.0171646,0.00023984,2]
[315462282,1709050261340,-200.0,0.00023987,2]
[315462283,1709050261350,-400.0,0.0002399,2]
[315462284,1709050261359,-6573.8704847,0.00023994,2]
[315462285,1709050261369,-15371.7968768,0.00023996,2]
[315462286,1709050261380,-500.0,0.00023996,2]
[315462287,1709050261390,-500.0,0.00023996,2]
[315462288,1709050261400,-500.0,0.00023996,2]
[315462289,1709050261410,-5311.24263685,0.00023998,4]
[315462290,1709050261423,-500.0,0.00023998,2]
[315462291,1709050261433,-500.0,0.00023998,2]
[315462292,1709050261444,-153.9147699,0.00023998,2]
[315462293,1709050261453,-522.16,0.00023998,2]
[315462294,1709050261463,-521.50074246,0.00023999,2]
[315462295,1709050261473,-500.0,0.00023999,2]
[315462296,1709050261482,-500.0,0.00023999,2]
[315462297,1709050261492,-574.39176215,0.00023999,2]
[315462298,1709050261501,-245.32,0.00023999,2]
[315462299,1709050261511,-500.0,0.00023999,2]
[315462300,1709050261521,-500.0,0.00023999,2]
[315462301,1709050261531,-500.0,0.00023999,2]
[315462302,1709050261540,-500.0,0.00023999,2]
[315462303,1709050261550,-327.05,0.00023999,2]
[315462304,1709050261560,-500.0,0.00023999,2]
[315462305,1709050261570,-591.19,0.00023999,2]
[315462306,1709050261580,-500.0,0.00023999,2]
[315462307,1709050261590,-416.07029183,0.00023999,2]
[315462308,1709050261599,-500.0,0.00023999,2]
[315462309,1709050261609,-500.0,0.00023999,2]
[315462310,1709050261619,-500.0,0.00023999,2]
[315462311,1709050261628,-500.0,0.00023999,2]
[315462312,1709050261638,-500.0,0.00023999,2]
[315462313,1709050261647,-500.0,0.00023999,2]
[315462314,1709050261657,-500.0,0.00023999,2]
[315462315,1709050261666,-500.0,0.00023999,2]
[315462316,1709050261682,-500.0,0.00023999,2]
[315462317,1709050261691,-500.0,0.00023999,2]
[315462318,1709050261701,-500.0,0.00023999,2]
[315462319,1709050261710,-500.0,0.00023999,2]
[315462320,1709050261719,-500.0,0.00023999,2]
[315462321,1709050261728,-515.72,0.00023999,2]
[315462322,1709050261737,-500.0,0.00023999,2]
[315462323,1709050261747,-414.32,0.00023999,2]
[315462324,1709050261756,-516.06,0.00023999,2]
[315462325,1709050261765,-500.0,0.00023999,2]
[315462326,1709050261775,-500.0,0.00023999,2]
[315462327,1709050261785,-500.0,0.00023999,2]
[315462328,1709050261794,-500.0,0.00023999,2]
[315462329,1709050261803,-500.0,0.00023999,2]
[315462330,1709050261813,-500.0,0.00023999,2]
[315462331,1709050261822,-500.0,0.00023999,2]
[315462332,1709050261831,-500.0,0.00023999,2]
[315462333,1709050261841,-500.0,0.00023999,2]
[315462334,1709050261851,-153.92019046,0.00023999,2]
[315462335,1709050261860,-500.0,0.00023999,2]
[315462336,1709050261870,-500.0,0.00023999,2]
[315462337,1709050261878,-500.0,0.00023999,2]
[315462338,1709050261887,-500.0,0.00023999,2]
[315462339,1709050261897,-500.0,0.00023999,2]
[315462340,1709050261906,-500.0,0.00023999,2]
[315462341,1709050261915,-500.0,0.00023999,2]
[315462342,1709050261927,-500.0,0.00023999,2]
[315462343,1709050261937,-500.0,0.00023999,2]
[315462344,1709050261946,-500.0,0.00023999,2]
[315462345,1709050261956,-500.0,0.00023999,2]
[315462346,1709050261966,-500.0,0.00023999,2]
[315462347,1709050261975,-630.30000001,0.00023999,2]
[315462348,1709050261985,-500.0,0.00023999,2]
[315462349,1709050261994,-500.0,0.00023999,2]
[315462350,1709050262004,-500.0,0.00023999,2]
[315462351,1709050262013,-353.7,0.00023999,2]
[315462352,1709050262023,-157.08007671,0.00024,2]
[315462353,1709050262032,-2169995.76502295,0.00024,30]
[315462354,1709050262437,-167003.07527816,0.00024,30]
[315462355,1709050262449,-778.60758,0.00024,30]
[315462356,1709050262469,-865162.87863685,0.00024,30]
[315462357,1709050262479,-1041124.4487734,0.00024,30]
[315462358,1709050262712,-406.32791783,0.00023735,2]
[315462359,1709050262722,-500.0,0.00023835,2]
[315462360,1709050262731,-500.0,0.00023835,2]
[315462361,1709050262741,-382.04188579,0.000239,2]
[315462362,1709050262750,-4193.52943806,0.00024,30]
[315462363,1709050262778,-319831.55735887,0.00024,30]
[315462364,1709050262787,-1000.0,0.00024,2]
[315462365,1709050262797,-78897.37107272,0.00024,30]
[315462366,1709050262810,-387.79071415,0.00024,30]
[315462367,1709050262822,-3398.65635,0.00024,30]
[315462368,1709050262836,-724.52201169,0.00024,30]
[315462369,1709050262848,-5965.14489891,0.00024,30]
[315462370,1709050262860,-591320.9549151,0.00024,30]
[315462371,1709050262870,-2893.7288883,0.00024,2]
[315462372,1709050262879,-206757.1886261,0.00024,2]
[315462373,1709050262891,-678.99081541,0.00024,2]
[315462374,1709050262916,-425.50049202,0.00023999,2]
[315462375,1709050262932,-593.46319458,0.00024,2]
[315462376,1709050262943,-371.5500007,0.00024,2]
[315462377,1709050262955,-141521.32432528,0.00024,2]
[315462378,1709050262964,-141112.23314979,0.00024,30]
[315462379,1709050263048,-500.0,0.00023835,2]
[315462380,1709050263057,-162.81367419,0.00024,30]
[315462381,1709050263069,-534.95,0.00024,30]
[315462382,1709050263081,-10265.6647468,0.00024,30]
[315462383,1709050263117,-6301.99999275,0.00024,30]
[315462384,1709050438969,2816.2808246,0.0002,7]
[315462385,1709050444636,189.09153314,0.00016076,2]
[315462386,1709050444662,3.93021559,0.00016076,2]
[315462387,1709050445489,206.0,0.00020259,7]
[315462388,1709050454968,2000.0,0.0002,7]
[315462390,1709050739704,186.22,0.00020269,10]
[315462391,1709050803710,151.0,0.00029786,120]
[315462392,1709050804958,207.0,0.00015076,2]
[315462393,1709050805605,207.0,0.00019804,8]
[315462394,1709050866424,851.12888592,0.0003,120]
[315462396,1709051081434,151.0,0.00029422,120]
[315462398,1709051130487,-600.0,0.00017429,2]
[315462399,1709051154223,-150000.0,0.00024,30]
[315462400,1709051174754,-50000.0,0.00024,30]
[315462401,1709051403619,151.0,0.00029181,120]
[315462410,1709051432114,-258.43377631,0.00016439,2]
[315462411,1709051432123,-207.0,0.0001644,2]
[315462412,1709051432132,-717.41514087,0.00017997,2]
[315462413,1709051432142,-155.0,0.00017998,2]
[315462414,1709051432151,-736.58,0.00018369,2]
[315462415,1709051432160,-207.0,0.00019002,5]
[315462416,1709051432169,-250.0,0.000192,2]
[315462417,1709051432178,-199.746832,0.000198,2]
[315462418,1709051432189,-324.16383086,0.00019999,2]
[315462419,1709051432198,-445.81,0.00019999,2]
[315462420,1709051432209,-300.0,0.00019999,2]
[315462421,1709051432219,-150.0,0.00019999,2]
[315462422,1709051432229,-5311.24263685,0.0002,4]
[315462423,1709051432238,-150.0,0.0002,4]
[315462424,1709051432248,-4892.73286743,0.0002,3]
[315462425,1709051432258,-4892.73286743,0.0002,3]
[315462426,1709051432267,-520.90144825,0.0002,3]
[315462427,1709051432279,-1044.59129427,0.0002,3]
[315462428,1709051432291,-2837.8819873,0.0002,3]
[315462429,1709051432303,-489.35813761,0.0002,3]
[315462430,1709051432313,-2317.49497839,0.0002,3]
[315462431,1709051432326,-2575.23788904,0.0002,3]
[315462432,1709051432337,-4892.73286743,0.0002,3]
[315462433,1709051432348,-4892.73286743,0.0002,3]
[315462434,1709051432359,-4892.73286743,0.0002,3]
[315462435,1709051432369,-4892.73286743,0.0002,3]
[315462436,1709051432378,-4892.73286743,0.0002,3]
[315462437,1709051432387,-4892.73186743,0.0002,3]
[315462438,1709051432396,-198.6953604,0.00020173,2]
[315462439,1709051432405,-1000.0,0.00020273,2]
[315462440,1709051432414,-188.82,0.00020287,2]
[315462441,1709051432423,-736.58,0.00020633,2]
[315462442,1709051432432,-250.0,0.00021165,2]
[315462443,1709051432441,-2705.0,0.00021204,2]
[315462444,1709051432451,-153.0,0.00021237,2]
[315462445,1709051432462,-500.0,0.0002126,2]
[315462446,1709051432471,-500.0,0.0002126,2]
[315462447,1709051432480,-172.68,0.00021312,2]
[315462448,1709051432489,-448.87,0.0002138,2]
[315462449,1709051432499,-2000.0,0.00021539,2]
[315462450,1709051432507,-207.0,0.00021565,8]
[315462451,1709051432517,-250.0,0.00021687,2]
[315462452,1709051432531,-559.03,0.00021687,2]
[315462453,1709051432540,-290.0,0.00021777,2]
[315462454,1709051432549,-1610.31710537,0.00022104,3]
[315462455,1709051432559,-187.59599392,0.00022104,3]
[315462456,1709051432569,-197.49852026,0.00022104,3]
[315462457,1709051432774,-1000.0,0.00022104,3]
[315462458,1709051432784,-188.00917668,0.00022104,3]
[315462459,1709051432794,-158.85,0.00022263,2]
[315462460,1709051432803,-153.0,0.00022333,2]
[315462461,1709051432813,-500.0,0.00022356,2]
[315462462,1709051432822,-574.64844781,0.00022356,2]
[315462463,1709051432831,-5219.0,0.000225,2]
[315462464,1709051432841,-2506.0,0.000225,2]
[315462465,1709051432850,-158.85,0.00022581,2]
[315462466,1709051432860,-171.19,0.00022636,2]
[315462467,1709051432870,-155.22,0.0002274,2]
[315462468,1709051432880,-448.87,0.000228,2]
[315462469,1709051432889,-1000.0,0.00022807,2]
[315462470,1709051432898,-736.58,0.00022897,2]
[315462471,1709051432908,-30206.1406,0.00022899,2]
[315462472,1709051432918,-158.85,0.00022899,2]
[315462473,1709051432928,-14551.17853378,0.00022999,2]
[315462474,1709051432938,-4034.86193482,0.00022999,2]
[315462475,1709051432948,-2312.64728928,0.00022999,2]
[315462476,1709051432959,-1600.80059451,0.00023,2]
[315462477,1709051432968,-707.0,0.00023,2]
[315462478,1709051432978,-150.0,0.00023,6]
[315462479,1709051432987,-354.95,0.00023,2]
[315462480,1709051432997,-1864.04598069,0.00023,2]
[315462481,1709051433007,-630.31619451,0.00023,2]
[315462482,1709051433016,-176.63,0.00023119,2]
[315462483,1709051433026,-180.0,0.000232,5]
[315462484,1709051433035,-158.85,0.00023217,2]
[315462485,1709051433044,-500.0,0.000233,2]
[315462486,1709051433054,-559.03,0.00023331,2]
[315462487,1709051433063,-153.0,0.00023429,2]
[315462488,1709051433073,-158.85,0.00023535,2]
[315462489,1709051433082,-150.0,0.00023733,2]
[315462490,1709051433093,-1083.91,0.00023749,3]
[315462491,1709051433102,-903.26,0.00023749,3]
[315462492,1709051433111,-451.63,0.00023749,3]
[315462493,1709051433122,-225.81,0.00023749,3]
[315462494,1709051433131,-677.48,0.00023749,3]
[315462495,1709051433141,-150.0,0.00023749,2]
[315462496,1709051433151,-150.625,0.00023759,2]
[315462497,1709051433161,-162.0,0.00023759,2]
[315462498,1709051433171,-401.32,0.00023759,2]
[315462499,1709051433180,-3681.398,0.00023759,2]
[315462500,1709051433189,-7186.06055577,0.00023759,2]
[315462501,1709051433202,-659.87525139,0.00023759,2]
[315462502,1709051433215,-691.59727248,0.00023759,2]
[315462503,1709051433240,-1138.31996974,0.00023759,2]
[315462504,1709051433253,-781.92109416,0.00023759,2]
[315462505,1709051433269,-1566.21055477,0.00023759,2]
[315462506,1709051433281,-282.70430169,0.00023759,2]
[315462507,1709051433290,-1114.499,0.00023759,2]
[315462508,1709051433300,-49.43169828,0.00023759,2]
[315462521,1709051438110,-1000.0,0.00022104,3]
[315462522,1709051438120,-906.56830172,0.00023759,2]
[315462523,1709051438129,-455.319,0.00023759,2]
[315462524,1709051438137,-710.0,0.00023759,2]
[315462525,1709051438147,-152.9106692,0.0002376,2]
[315462526,1709051438156,-150.0,0.00023783,2]
[315462527,1709051438165,-150.0,0.00023789,2]
[315462528,1709051438175,-706.27242901,0.00023798,2]
[315462529,1709051438184,-12703.25882407,0.000238,2]
[315462530,1709051438200,-25024.90092736,0.000238,2]
[315462531,1709051438269,-2489.34211789,0.000238,2]
[315462532,1709051438332,-378.67283408,0.000238,2]
[315462594,1709051440569,-1444.79500001,0.000238,2]
[315462595,1709051440581,-2403.54798569,0.000238,2]
[315462596,1709051440593,-383.03519,0.000238,2]
[315462597,1709051440605,-309.30012,0.000238,2]
[315462598,1709051440730,-648.63598387,0.000238,2]
[315462599,1709051440781,-17034.62421703,0.000238,2]
[315462600,1709051440790,-1995.0,0.000238,2]
[315462601,1709051440799,-296.1059,0.000238,2]
[315462602,1709051440808,-113.62128339,0.000238,2]
[315462603,1709051441496,-104.63541049,0.000238,2]
[315462604,1709051441506,-200.0,0.00023808,2]
[315462605,1709051441515,-313.8495021,0.00023808,2]
[315462606,1709051441527,-486.1504979,0.00023808,2]
[315462607,1709051441540,-200.0,0.00023808,2]
[315462608,1709051441549,-500.0,0.00023808,2]
[315462609,1709051441558,-150.0,0.00023832,2]
[315462610,1709051441568,-470.17045098,0.00023833,2]
[315462612,1709051441578,-201.01801353,0.00023833,2]
[315462614,1709051441587,-280.66977981,0.00023833,2]
[315462616,1709051441596,-632.68084989,0.00023833,2]
[315462618,1709051441605,-981.99056263,0.00023834,2]
[315462620,1709051441615,-230.79919897,0.00023834,2]
[315462622,1709051441624,-500.0,0.00023835,2]
[315462624,1709051441633,-529.95766323,0.00023835,2]
[315462626,1709051441643,-500.0,0.00023835,2]
[315462628,1709051441652,-303.24128676,0.00023835,2]
[315462630,1709051441661,-500.0,0.00023835,2]
[315462632,1709051441670,-500.0,0.00023835,2]
[315462633,1709051441680,-500.0,0.00023835,2]
[315462635,1709051441690,-451.83,0.00023835,2]
[315462637,1709051441699,-500.0,0.00023835,2]
[315462639,1709051441709,-223.6109478,0.00023835,2]
[315462641,1709051441721,-500.0,0.00023835,2]
[315462644,1709051441731,-500.0,0.00023835,2]
[315462646,1709051441740,-300.04,0.00023835,2]
[315462648,1709051441749,-500.0,0.00023835,2]
[315462649,1709051441759,-150.0,0.00023835,2]
[315462652,1709051441768,-500.0,0.00023835,2]
[315462653,1709051441778,-500.0,0.00023835,2]
[315462655,1709051441788,-205.73,0.00023835,2]
[315462657,1709051441798,-500.0,0.00023835,2]
[315462659,1709051441807,-500.0,0.00023835,2]
[315462661,1709051441817,-500.0,0.00023835,2]
[315462663,1709051441826,-500.0,0.00023835,2]
[315462665,1709051441836,-500.0,0.00023835,2]
[315462667,1709051441846,-500.0,0.00023835,2]
[315462669,1709051441855,-500.0,0.00023835,2]
[315462671,1709051441865,-500.0,0.00023835,2]
[315462673,1709051441875,-500.0,0.00023835,2]
[315462675,1709051441886,-500.0,0.00023835,2]
[315462677,1709051441895,-500.0,0.00023835,2]
[315462679,1709051441905,-500.0,0.00023835,2]
[315462681,1709051441913,-500.0,0.00023835,2]
[315462684,1709051441923,-500.0,0.00023835,2]
[315462686,1709051441932,-525.30057057,0.00023835,2]
[315462688,1709051441942,-500.0,0.00023835,2]
[315462690,1709051441951,-182.31133419,0.00023835,2]
[315462692,1709051441961,-500.0,0.00023835,2]
[315462694,1709051441975,-500.0,0.00023835,2]
[315462695,1709051441985,-500.0,0.00023835,2]
[315462697,1709051441994,-262.51829013,0.00023835,2]
[315462700,1709051442003,-500.0,0.00023835,2]
[315462702,1709051442013,-500.0,0.00023835,2]
[315462703,1709051442022,-500.0,0.00023835,2]
[315462705,1709051442031,-500.0,0.00023835,2]
[315462707,1709051442040,-500.0,0.00023835,2]
[315462709,1709051442049,-500.0,0.00023835,2]
[315462711,1709051442060,-500.0,0.00023835,2]
[315462714,1709051442070,-535.87462763,0.00023835,2]
[315462716,1709051442079,-500.0,0.00023835,2]
[315462718,1709051442088,-185.07,0.00023835,2]
[315462720,1709051442097,-500.0,0.00023835,2]
[315462722,1709051442106,-545.73,0.00023835,2]
[315462723,1709051442115,-500.0,0.00023835,2]
[315462725,1709051442124,-500.0,0.00023835,2]
[315462727,1709051442133,-500.0,0.00023835,2]
[315462729,1709051442142,-500.0,0.00023835,2]
[315462731,1709051442152,-500.0,0.00023835,2]
[315462733,1709051442161,-500.0,0.00023835,2]
[315462735,1709051442170,-500.0,0.00023835,2]
[315462738,1709051442180,-500.0,0.00023835,2]
[315462740,1709051442189,-500.0,0.00023835,2]
[315462742,1709051442199,-500.0,0.00023835,2]
[315462744,1709051442208,-500.0,0.00023835,2]
[315462746,1709051442221,-500.0,0.00023835,2]
[315462748,1709051442231,-567.2,0.00023835,2]
[315462750,1709051442240,-500.0,0.00023835,2]
[315462752,1709051442249,-500.0,0.00023835,2]
[315462754,1709051442258,-500.0,0.00023835,2]
[315462756,1709051442267,-500.0,0.00023835,2]
[315462758,1709051442276,-500.0,0.00023835,2]
[315462760,1709051442285,-500.0,0.00023835,2]
[315462762,1709051442294,-500.0,0.00023835,2]
[315462763,1709051442303,-500.0,0.00023835,2]
[315462766,1709051442313,-500.0,0.00023835,2]
[315462768,1709051442324,-500.0,0.00023835,2]
[315462769,1709051442333,-500.0,0.00023835,2]
[315462771,1709051442343,-500.0,0.00023835,2]
[315462773,1709051442352,-255.67871484,0.00023835,2]
[315462775,1709051442361,-500.0,0.00023835,2]
[315462777,1709051442370,-625.61,0.00023835,2]
[315462779,1709051442379,-500.0,0.00023835,2]
[315462781,1709051442388,-500.0,0.00023835,2]
[315462782,1709051442397,-500.0,0.00023835,2]
[315462783,1709051442407,-500.0,0.00023835,2]
[315462784,1709051442416,-500.0,0.00023835,2]
[315462785,1709051442425,-500.0,0.00023835,2]
[315462786,1709051442434,-474.05472924,0.00023835,2]
[315462787,1709051442444,-500.0,0.00023835,2]
[315462788,1709051442454,-300.32,0.00023835,2]
[315462789,1709051442465,-500.0,0.00023835,2]
[315462790,1709051442475,-500.0,0.00023835,2]
[315462791,1709051442484,-500.0,0.00023835,2]
[315462792,1709051442493,-500.0,0.00023835,2]
[315462794,1709051442504,-500.0,0.00023835,2]
[315462796,1709051442513,-500.0,0.00023835,2]
[315462798,1709051442522,-500.0,0.00023835,2]
[315462800,1709051442533,-537.87,0.00023835,2]
[315462802,1709051442542,-500.0,0.00023835,2]
[315462804,1709051442552,-500.0,0.00023835,2]
[315462806,1709051442563,-595.7689499,0.00023835,2]
[315462808,1709051442572,-500.0,0.00023835,2]
[315462810,1709051442582,-500.0,0.00023835,2]
[315462812,1709051442592,-500.0,0.00023835,2]
[315462814,1709051442602,-500.0,0.00023835,2]
[315462816,1709051442611,-500.0,0.00023835,2]
[315462817,1709051442622,-500.0,0.00023835,2]
[315462818,1709051442632,-500.0,0.00023835,2]
[315462819,1709051442642,-500.0,0.00023835,2]
[315462820,1709051442652,-500.0,0.00023835,2]
[315462822,1709051442661,-500.0,0.00023835,2]
[315462823,1709051442670,-223.707026,0.00023835,2]
[315462824,1709051442680,-277.22,0.00023835,2]
[315462825,1709051442689,-500.0,0.00023835,2]
[315462826,1709051442699,-500.0,0.00023835,2]
[315462827,1709051442708,-548.48044174,0.00023835,2]
[315462828,1709051442719,-500.0,0.00023835,2]
[315462829,1709051442729,-500.0,0.00023835,2]
[315462830,1709051442738,-505.44107839,0.00023835,2]
[315462832,1709051442747,-500.0,0.00023835,2]
[315462833,1709051442757,-500.0,0.00023835,2]
[315462834,1709051442766,-500.0,0.00023835,2]
[315462835,1709051442775,-500.0,0.00023835,2]
[315462836,1709051442785,-500.0,0.00023835,2]
[315462837,1709051442795,-500.0,0.00023835,2]
[315462839,1709051442805,-649.05514969,0.00023835,2]
[315462841,1709051442814,-500.0,0.00023835,2]
[315462842,1709051442824,-500.0,0.00023835,2]
[315462843,1709051442834,-500.0,0.00023835,2]
[315462844,1709051442844,-500.0,0.00023835,2]
[315462845,1709051442853,-500.0,0.00023835,2]
[315462846,1709051442863,-500.0,0.00023835,2]
[315462847,1709051442872,-601.89,0.00023835,2]
[315462848,1709051442881,-500.0,0.00023835,2]
[315462849,1709051442890,-500.0,0.00023835,2]
[315462850,1709051442900,-500.0,0.00023835,2]
[315462852,1709051442910,-150.0,0.00023837,2]
[315462853,1709051442920,-218.25669388,0.0002385,2]
[315462854,1709051442930,-158.85,0.00023853,2]
[315462858,1709051442948,-150.0,0.00023856,2]
[315462859,1709051442960,-202.03552152,0.0002389,2]
[315462860,1709051442972,-5727.83371092,0.00023899,2]
[315462861,1709051442982,-500.0,0.00023899,2]
[315462862,1709051442992,-500.0,0.00023899,2]
[315462863,1709051443001,-500.0,0.00023899,2]
[315462864,1709051443010,-500.0,0.00023899,2]
[315462865,1709051443020,-628.22,0.00023899,2]
[315462866,1709051443030,-500.0,0.00023899,2]
[315462867,1709051443039,-382.81382389,0.00023899,2]
[315462868,1709051443049,-500.0,0.00023899,2]
[315462869,1709051443059,-500.0,0.00023899,2]
[315462870,1709051443068,-157.02431342,0.00023899,2]
[315462871,1709051443078,-500.0,0.00023899,2]
[315462872,1709051443087,-500.0,0.00023899,2]
[315462873,1709051443098,-500.0,0.00023899,2]
[315462874,1709051443107,-500.0,0.00023899,2]
[315462875,1709051443117,-190.01418465,0.00023899,2]
[315462876,1709051443127,-500.0,0.00023899,2]
[315462877,1709051443136,-500.0,0.00023899,2]
[315462878,1709051443146,-500.0,0.00023899,2]
[315462879,1709051443156,-500.0,0.00023899,2]
[315462880,1709051443166,-218.07,0.00023899,2]
[315462881,1709051443176,-500.0,0.00023899,2]
[315462882,1709051443186,-500.0,0.00023899,2]
[315462883,1709051443195,-500.0,0.00023899,2]
[315462884,1709051443205,-500.0,0.00023899,2]
[315462885,1709051443216,-585.28,0.00023899,2]
[315462890,1709051443226,-500.0,0.00023899,2]
[315462891,1709051443473,-500.0,0.00023899,2]
[315462892,1709051443483,-500.0,0.00023899,2]
[315462893,1709051443492,-500.0,0.00023899,2]
[315462894,1709051443501,-500.0,0.00023899,2]
[315462895,1709051443511,-500.0,0.00023899,2]
[315462896,1709051443520,-500.0,0.00023899,2]
[315462898,1709051443530,-500.0,0.00023899,2]
[315462900,1709051443540,-500.0,0.00023899,2]
[315462901,1709051443551,-500.0,0.00023899,2]
[315462902,1709051443562,-500.0,0.00023899,2]
[315462903,1709051443572,-500.0,0.00023899,2]
[315462904,1709051443582,-500.0,0.00023899,2]
[315462905,1709051443596,-487.80907053,0.00023899,2]
[315462906,1709051443605,-500.0,0.00023899,2]
[315462907,1709051443614,-500.0,0.00023899,2]
[315462908,1709051443625,-500.0,0.00023899,2]
[315462909,1709051443634,-500.0,0.00023899,2]
[315462910,1709051443644,-500.0,0.00023899,2]
[315462911,1709051443653,-500.0,0.00023899,2]
[315462912,1709051443662,-500.0,0.00023899,2]
[315462913,1709051443672,-500.0,0.00023899,2]
[315462914,1709051443682,-420.0886782,0.00023899,2]
[315462915,1709051443691,-448.97582979,0.00023899,2]
[315462916,1709051443700,-500.0,0.00023899,2]
[315462917,1709051443710,-500.0,0.00023899,2]
[315462918,1709051443723,-276.13,0.00023899,2]
[315462919,1709051443732,-500.0,0.00023899,2]
[315462920,1709051443742,-500.0,0.00023899,2]
[315462921,1709051443751,-500.0,0.00023899,2]
[315462922,1709051443761,-500.0,0.00023899,2]
[315462923,1709051443771,-500.0,0.00023899,2]
[315462924,1709051443780,-298.7,0.00023899,2]
[315462925,1709051443790,-500.0,0.00023899,2]
[315462926,1709051443800,-500.0,0.00023899,2]
[315462927,1709051443810,-223.47,0.00023899,2]
[315462928,1709051443820,-500.0,0.00023899,2]
[315462929,1709051443830,-500.0,0.00023899,2]
[315462930,1709051443839,-500.0,0.00023899,2]
[315462931,1709051443849,-500.0,0.00023899,2]
[315462932,1709051443858,-500.0,0.00023899,2]
[315462933,1709051443872,-500.0,0.00023899,2]
[315462934,1709051443884,-500.0,0.00023899,2]
[315462935,1709051443894,-500.0,0.00023899,2]
[315462936,1709051443904,-500.0,0.00023899,2]
[315462937,1709051443914,-541.66,0.00023899,2]
[315462938,1709051443925,-227.97438508,0.00023899,2]
[315462939,1709051443935,-500.0,0.00023899,2]